bitfinex/quotes_SOLUSD_20240621
["timestamp","ask_amount","ask_price","bid_price","bid_amount"]
[1719010998024,5.908,135.41,135.37,5.9094]
[1719010998312,5.9077,135.42,135.37,5.9096]
[1719010998738,16.1744,135.44,135.4,5.908]
[1719010999007,5.9073,135.43,135.38,5.909]
[1719010999186,5.9076,135.42,135.37,5.9096]
[1719010999382,5.9077,135.42,135.37,5.9096]
[1719010999602,5.9102,135.36,135.3,7.422]
[1719010999807,16.1744,135.4,135.26,20.0]
[1719010999808,27.5,135.39,135.26,7.422]
[1719011000011,5.9098,135.37,135.26,7.422]
[1719011000308,5.9093,135.38,135.26,7.422]
[1719011000514,20.0,135.37,135.3,7.422]
[1719011000712,20.0,135.37,135.34,5.9109]
[1719011000914,16.1744,135.4,135.32,22.2]
[1719011001313,16.1744,135.4,135.37,5.9094]
[1719011001613,16.1744,135.43,135.39,5.9087]
[1719011002713,16.1744,135.43,135.33,49.7]
[1719011002904,16.1744,135.43,135.34,22.54]
[1719011003101,16.1744,135.43,135.37,14.7737]
[1719011003419,16.1744,135.43,135.4,5.9084]
[1719011003592,16.1744,135.43,135.34,14.7767]
[1719011003796,25.9078,135.42,135.37,5.9096]
[1719011004412,20.0,135.42,135.38,5.9092]
[1719011004824,20.0,135.42,135.36,36.9751]
[1719011005012,16.1744,135.43,135.4,5.9081]
[1719011006119,16.1744,135.43,135.39,5.9086]
[1719011006803,16.1744,135.43,135.39,5.61315]
[1719011008327,16.1744,135.43,135.4,5.9083]
[1719011008530,16.1744,135.43,135.4,5.9082]
[1719011010530,22.0817,135.43,135.38,5.9092]
[1719011010830,16.1744,135.43,135.36,36.9751]
[1719011011135,16.1744,135.43,135.4,5.9083]
[1719011012833,16.1744,135.43,135.39,5.9087]
[1719011013138,16.1744,135.43,135.4,5.9083]
[1719011013448,16.1744,135.43,135.39,5.9087]
[1719011013449,22.0815,135.43,135.39,5.9087]
[1719011013608,22.0815,135.43,135.38,5.9091]
[1719011014230,22.0815,135.43,135.39,5.9087]
[1719011014434,22.0815,135.43,135.38,5.9091]
[1719011014604,22.0815,135.43,135.39,5.9087]
[1719011014812,16.1744,135.43,135.39,5.9087]
[1719011015832,22.0815,135.43,135.39,5.9087]
[1719011016635,16.1744,135.43,135.39,5.9087]
[1719011017330,22.0815,135.43,135.38,5.9092]
[1719011017634,22.0817,135.43,135.38,5.9092]
[1719011019220,5.9075,135.42,135.38,5.9092]
[1719011020124,22.0815,135.43,135.38,5.9092]
[1719011020510,16.1744,135.43,135.39,5.9085]
[1719011021547,22.0815,135.43,135.39,5.9085]
[1719011021862,5.9076,135.42,135.37,5.9094]
[1719011022152,22.0817,135.43,135.38,5.909]
[1719011022314,22.0817,135.43,135.36,5.91]
[1719011022315,20.0,135.42,135.36,5.91]
[1719011022521,5.9081,135.41,135.36,5.91]
[1719011022732,20.0,135.4,135.36,5.91]
[1719011024136,20.0,135.4,135.37,5.9096]
[1719011024348,22.0819,135.43,135.34,22.2]
[1719011024516,20.0,135.42,135.35,0.17]
[1719011024932,20.0,135.42,135.39,5.9086]
[1719011025324,20.0,135.42,135.38,5.909]
[1719011026545,16.1744,135.43,135.35,22.37]
[1719011026725,16.1744,135.43,135.4,5.9083]
[1719011029162,16.1744,135.43,135.41,5.9079]
[1719011029316,21.2403,135.46,135.41,5.9079]
[1719011029524,5.9063,135.45,135.41,5.9079]
[1719011029921,5.9063,135.45,135.4,5.9082]
[1719011031230,5.9063,135.45,135.4,5.87725]
[1719011032330,15.3344,135.46,135.39,5.9086]
[1719011032946,5.9068,135.44,135.39,5.9086]
[1719011033346,5.9071,135.43,135.38,5.909]
[1719011033648,5.9073,135.43,135.38,5.909]
[1719011034957,5.9073,135.43,135.39,5.9086]
[1719011035259,27.5,135.45,135.33,7.405]
[1719011035260,27.5,135.45,135.37,22.2]
[1719011035470,27.5,135.45,135.38,0.34]
[1719011035863,33.4064,135.45,135.41,5.9078]
[1719011037469,21.2403,135.46,135.42,5.9074]
[1719011037663,15.3344,135.46,135.42,5.9074]
[1719011037972,21.2404,135.46,135.42,5.9074]
[1719011038562,15.3344,135.46,135.43,5.907]
[1719011038944,15.3344,135.46,135.42,5.9073]
[1719011039356,5.905,135.48,135.41,0.17]
[1719011039557,5.905,135.48,135.43,5.9069]
[1719011040367,5.905,135.48,135.44,5.9066]
[1719011040766,5.905,135.48,135.43,5.9069]
[1719011041152,15.3344,135.5,135.41,22.54]
[1719011041459,21.2386,135.5,135.45,5.906]
[1719011042253,15.3344,135.5,135.44,5.9064]
[1719011042446,5.906,135.46,135.41,5.9077]
[1719011043054,5.906,135.46,135.38,14.7721]
[1719011043370,5.906,135.46,135.41,5.9077]
[1719011043562,5.9062,135.45,135.41,5.9077]
[1719011043875,5.9078,135.42,135.37,5.9095]
[1719011044172,5.9078,135.42,135.33,21.408]
[1719011044173,5.9088,135.4,135.33,21.408]
[1719011044358,5.9088,135.4,135.3,14.7721]
[1719011044359,27.5,135.4,135.3,29.5538]
[1719011044559,27.5,135.4,135.3,14.7817]
[1719011044739,20.0,135.39,135.34,5.9109]
[1719011044948,20.0,135.39,135.35,5.9105]
[1719011045140,25.9088,135.39,135.34,5.9108]
[1719011046863,16.2009,135.41,135.37,5.9096]
[1719011048458,22.1089,135.41,135.36,5.9099]
[1719011050391,16.2009,135.41,135.37,5.9094]
[1719011051482,22.1089,135.41,135.36,5.91]
[1719011052166,22.1089,135.41,135.4,127.0]
[1719011053496,16.2009,135.41,135.4,127.0]
[1719011053989,22.1088,135.41,135.4,127.0]
[1719011054372,42.1088,135.41,135.4,127.0]
[1719011054561,42.1088,135.41,135.4,106.27475019]
[1719011058390,36.2009,135.41,135.4,106.27475019]
[1719011059367,16.2009,135.41,135.4,106.27475019]
[1719011059966,16.2009,135.41,135.4,103.77475019]
[1719011061191,5.9077,135.42,135.4,103.77475019]
[1719011061782,49.6077,135.44,135.4,103.77475019]
[1719011061985,16.2009,135.44,135.4,109.68305019]
[1719011062292,5.9063,135.45,135.41,5.9079]
[1719011062477,5.9063,135.45,135.4,109.68295019]
[1719011062793,43.33,135.47,135.4,103.77475019]
[1719011063007,49.2355,135.47,135.42,5.9074]
[1719011063370,21.7355,135.47,135.42,5.9074]
[1719011064492,21.7355,135.47,135.43,5.907]
[1719011064872,15.83,135.47,135.43,5.907]
[1719011065192,5.9051,135.48,135.43,5.907]
[1719011065395,5.9045,135.49,135.44,5.9065]
[1719011065897,5.9056,135.47,135.42,5.9074]
[1719011066067,22.2961,135.48,135.4,103.77475019]
[1719011066398,22.2961,135.48,135.4,109.68305019]
[1719011066399,5.9067,135.44,135.4,109.68305019]
[1719011066693,5.9064,135.45,135.4,109.68305019]
[1719011066877,14.7643,135.47,135.4,103.77475019]
[1719011067267,20.0,135.46,135.4,103.77475019]
[1719011067671,5.9068,135.44,135.4,103.77475019]
[1719011067894,5.9064,135.45,135.4,109.68295019]
[1719011068090,5.9048,135.49,135.44,5.9063]
[1719011068303,5.9043,135.5,135.45,5.9062]
[1719011068765,21.7337,135.51,135.46,5.9056]
[1719011068970,20.0,135.5,135.46,5.9056]
[1719011069196,21.7337,135.51,135.46,5.9056]
[1719011069568,15.83,135.51,135.45,5.906]
[1719011069896,15.83,135.51,135.43,16.5768]
[1719011070072,5.9045,135.49,135.44,5.9064]
[1719011070503,5.9045,135.49,135.45,5.9061]
[1719011070677,5.9041,135.5,135.46,5.9057]
[1719011070884,21.7337,135.51,135.46,5.9057]
[1719011071077,33.4033,135.52,135.47,5.9053]
[1719011071279,5.9028,135.53,135.48,5.9049]
[1719011071492,5.9024,135.54,135.49,5.9044]
[1719011071889,25.9028,135.53,135.49,5.9044]
[1719011072064,5.9028,135.53,135.49,5.9044]
[1719011072398,5.9024,135.54,135.49,5.9044]
[1719011072582,6.4661,135.56,135.49,5.9044]
[1719011072583,5.9027,135.53,135.49,5.9044]
[1719011073279,5.9027,135.53,135.48,5.9047]
[1719011075109,43.33,135.57,135.48,6.5498]
[1719011075403,43.33,135.57,135.5,5.9038]
[1719011075404,5.9022,135.55,135.5,5.9038]
[1719011075576,20.0,135.56,135.49,5.9043]
[1719011075766,20.0,135.56,135.48,12.4545]
[1719011075767,5.9029,135.53,135.48,12.4545]
[1719011075969,5.9047,135.49,135.45,6.5498]
[1719011076506,5.9047,135.49,135.44,5.9065]
[1719011076894,5.9047,135.49,135.45,5.9061]
[1719011077301,42.2578,135.53,135.45,5.9061]
[1719011077605,5.9043,135.5,135.46,5.9057]
[1719011077903,5.9037,135.51,135.46,5.9057]
[1719011080307,5.9037,135.51,135.47,5.9052]
[1719011080491,5.9037,135.51,135.46,5.9056]
[1719011083906,42.2578,135.53,135.46,5.9056]
[1719011084209,5.9038,135.51,135.46,5.9056]
[1719011084600,5.9033,135.52,135.48,5.9049]
[1719011084800,20.0,135.51,135.48,5.9049]
[1719011085505,5.9024,135.54,135.49,5.9044]
[1719011086194,5.9024,135.54,135.5,5.904]
[1719011087314,5.902,135.55,135.51,5.9035]
[1719011087686,15.83,135.57,135.51,5.9035]
[1719011087687,5.9015,135.56,135.51,5.9035]
[1719011088189,5.9019,135.55,135.51,5.9035]
[1719011088512,5.9019,135.55,135.49,15.048]
[1719011089810,14.7536,135.56,135.49,15.048]
[1719011089996,14.7536,135.56,135.49,20.9523]
[1719011090905,42.2514,135.59,135.49,15.048]
[1719011091080,5.9016,135.56,135.51,5.9034]
[1719011091500,42.2514,135.59,135.51,5.9034]
[1719011091501,5.902,135.55,135.51,5.9034]
[1719011091722,5.902,135.55,135.5,5.9039]
[1719011091891,14.7523,135.58,135.5,5.9039]
[1719011092092,5.902,135.55,135.51,5.9035]
[1719011092291,5.902,135.55,135.5,5.9038]
[1719011092797,5.902,135.55,135.51,5.9035]
[1719011093920,5.902,135.55,135.49,15.048]
[1719011093921,5.9016,135.56,135.52,5.903]
[1719011094411,5.9012,135.57,135.52,5.903]
[1719011094597,20.0,135.56,135.52,5.903]
[1719011095714,5.9006,135.58,135.54,5.902]
[1719011096194,33.4002,135.59,135.54,5.902]
[1719011096516,20.0,135.58,135.54,5.902]
[1719011097212,5.9002,135.59,135.54,5.902]
[1719011097428,5.8997,135.6,135.55,5.9015]
[1719011097916,5.9001,135.59,135.55,5.9015]
[1719011098403,5.8998,135.6,135.55,5.9015]
[1719011098915,5.8998,135.6,135.55,27.2344]
[1719011099995,5.9001,135.59,135.55,27.2344]
[1719011100200,15.6119173,135.62,135.55,15.048]
[1719011100201,14.7489,135.61,135.55,15.048]
[1719011100416,5.9021,135.55,135.52,6.2849]
[1719011100894,5.9021,135.55,135.51,15.048]
[1719011101098,5.9023,135.54,135.51,15.048]
[1719011101308,5.902,135.55,135.51,15.048]
[1719011101509,5.902,135.55,135.51,20.9514]
[1719011101710,5.9016,135.56,135.51,20.9514]
[1719011101903,5.9019,135.55,135.51,20.9514]
[1719011102119,5.9019,135.55,135.51,15.048]
[1719011102812,5.9025,135.54,135.51,15.048]
[1719011103019,5.9025,135.54,135.42,5.94164348]
[1719011103020,27.5,135.54,135.44,15.048]
[1719011103220,266.5652,135.57,135.43,5.9069]
[1719011103221,5.9052,135.48,135.43,5.9069]
[1719011103522,42.2592,135.51,135.42,15.5937]
[1719011103523,42.2592,135.51,135.42,21.5012]
[1719011103726,5.9055,135.47,135.42,21.5012]
[1719011104117,5.9058,135.46,135.42,15.5937]
[1719011104314,14.7655,135.46,135.38,6.0968]
[1719011104530,5.9081,135.41,135.36,5.91]
[1719011105030,5.9076,135.42,135.36,5.91]
[1719011105332,5.9071,135.43,135.38,5.909]
[1719011105535,20.0,135.42,135.35,30.3701]
[1719011105704,20.0,135.42,135.38,5.9091]
[1719011106206,20.0,135.42,135.37,5.9096]
[1719011106419,20.0,135.42,135.38,5.9091]
[1719011106616,20.0,135.42,135.37,5.9095]
[1719011107317,25.9077,135.42,135.36,5.91]
[1719011107542,20.0,135.42,135.34,6.0968]
[1719011107708,5.9081,135.41,135.34,6.0968]
[1719011109035,5.9081,135.41,135.36,5.9099]
[1719011109507,20.0,135.42,135.32,14.7788]
[1719011109708,5.9092,135.39,135.31,15.5937]
[1719011110437,26.1652,135.42,135.3,20.8786]
[1719011110736,5.9102,135.36,135.27,36.4746]
[1719011110925,5.9102,135.36,135.31,5.912]
[1719011111129,5.9097,135.38,135.33,5.9114]
[1719011111427,14.7713,135.4,135.29,14.7828]
[1719011111428,20.0,135.37,135.29,14.7828]
[1719011111807,34.7731,135.39,135.27,21.6905]
[1719011112031,5.9115,135.33,135.28,5.9134]
[1719011112235,5.9107,135.35,135.3,5.9125]
[1719011112544,5.9103,135.36,135.31,5.9123]
[1719011112725,20.0,135.35,135.31,5.9123]
[1719011112917,20.0,135.35,135.33,5.9112]
[1719011113235,14.7711,135.4,135.31,5.9121]
[1719011113441,5.9102,135.36,135.31,5.9121]
[1719011113629,5.9098,135.37,135.32,5.9116]
[1719011113951,20.0,135.36,135.32,5.9116]
[1719011114260,20.0,135.36,135.27,43.8905]
[1719011114537,20.17,135.41,135.27,36.4747]
[1719011114721,5.9112,135.34,135.27,20.881]
[1719011114912,20.0,135.33,135.27,12.0107]
[1719011115117,5.912,135.32,135.27,12.0107]
[1719011115313,20.0,135.31,135.27,12.0106]
[1719011115531,20.0,135.31,135.27,5.9138]
[1719011115720,20.0,135.31,135.24,14.2882]
[1719011115924,20.0,135.32,135.24,14.2882]
[1719011116338,20.0,135.32,135.29,5.9132]
[1719011116533,20.0,135.33,135.29,5.9132]
[1719011116732,20.0,135.33,135.27,5.9139]
[1719011116931,14.778,135.34,135.24,14.7884]
[1719011117132,14.778,135.34,135.26,5.9144]
[1719011117321,5.9124,135.31,135.26,5.9144]
[1719011117535,20.0,135.3,135.26,5.9144]
[1719011117926,20.0,135.3,135.24,14.7883]
[1719011118139,25.9117,135.33,135.28,5.9135]
[1719011118537,20.0,135.33,135.24,14.7883]
[1719011118743,5.912,135.32,135.27,5.914]
[1719011119055,20.0,135.31,135.27,5.914]
[1719011119351,5.9115,135.33,135.29,5.913]
[1719011119540,25.9123,135.32,135.27,5.9136]
[1719011119713,25.9123,135.32,135.28,5.9134]
[1719011119714,20.0,135.32,135.28,5.9134]
[1719011120130,20.0,135.32,135.29,5.9132]
[1719011120446,20.0,135.32,135.28,5.9134]
[1719011121930,25.912,135.32,135.28,5.9134]
[1719011122253,20.0,135.32,135.26,14.7853]
[1719011122551,16.432,135.36,135.26,14.7853]
[1719011122552,25.9109,135.35,135.3,5.9127]
[1719011122716,5.9122,135.32,135.27,5.9138]
[1719011123528,20.0,135.35,135.23,43.8905]
[1719011123722,20.0,135.35,135.32,5.9116]
[1719011123924,20.0,135.36,135.32,5.9116]
[1719011124145,5.911,135.34,135.25,14.7864]
[1719011124446,14.7743,135.37,135.29,5.9131]
[1719011124748,14.7743,135.37,135.25,14.7864]
[1719011124749,5.9119,135.32,135.25,14.7864]
[1719011124940,5.9119,135.32,135.27,5.914]
[1719011125118,5.9124,135.31,135.27,5.914]
[1719011125322,5.9119,135.32,135.27,5.914]
[1719011125518,20.0,135.31,135.28,5.9133]
[1719011125755,6.1652,135.38,135.19,100.0]
[1719011125756,14.7745,135.37,135.19,100.0]
[1719011126055,25.9103,135.36,135.31,5.9122]
[1719011126229,25.9103,135.36,135.28,14.784]
[1719011126435,25.9103,135.36,135.31,5.912]
[1719011126640,20.0,135.36,135.3,14.9519]
[1719011126846,20.0,135.39,135.32,5.9117]
[1719011127147,5.9099,135.37,135.32,5.9117]
[1719011127337,20.0,135.36,135.32,5.9117]
[1719011127519,5.9101,135.36,135.32,5.9117]
[1719011127725,27.58,135.37,135.27,5.914]
[1719011127925,5.9115,135.33,135.26,0.17]
[1719011128150,5.9115,135.33,135.28,5.9134]
[1719011128451,5.9124,135.31,135.24,14.7876]
[1719011128748,5.912,135.32,135.27,5.914]
[1719011129249,27.58,135.33,135.28,5.9134]
[1719011129250,33.4915,135.33,135.28,5.9134]
[1719011129463,27.58,135.33,135.29,5.9131]
[1719011130245,5.9107,135.35,135.3,5.9126]
[1719011130454,5.9111,135.34,135.3,5.9126]
[1719011130839,5.9111,135.34,135.29,5.913]
[1719011131434,5.9111,135.34,135.3,5.9127]
[1719011131751,37.6682,135.4,135.33,5.9112]
[1719011131933,5.9095,135.38,135.33,5.9112]
[1719011132134,5.9095,135.38,135.34,5.911]
[1719011132348,5.9095,135.38,135.33,5.9113]
[1719011132555,5.9098,135.37,135.32,5.9117]
[1719011133230,5.9102,135.36,135.32,5.9117]
[1719011133433,27.58,135.37,135.26,50.4178]
[1719011133637,20.0,135.39,135.27,0.34]
[1719011133863,27.58,135.36,135.27,0.34]
[1719011134034,5.9111,135.34,135.29,5.913]
[1719011135757,5.9111,135.34,135.26,20.8459]
[1719011135758,5.9107,135.35,135.3,5.9125]
[1719011137563,5.911,135.34,135.3,5.9125]
[1719011138469,5.9121,135.32,135.27,5.9138]
[1719011140154,5.9121,135.32,135.28,5.9135]
[1719011140846,33.4916,135.33,135.28,5.9135]
[1719011141773,33.4916,135.33,135.26,6.0597]
[1719011141774,27.58,135.33,135.26,20.8456]
[1719011141958,5.9108,135.35,135.27,0.17]
[1719011142264,42.3556,135.36,135.27,0.17]
[1719011142567,34.7773,135.35,135.27,0.17]
[1719011143051,5.9112,135.34,135.29,5.9129]
[1719011143260,5.9122,135.32,135.27,6.0838]
[1719011143456,34.7766,135.35,135.27,0.17]
[1719011143662,5.9116,135.33,135.29,5.9131]
[1719011143873,20.0,135.35,135.27,0.17]
[1719011144044,5.9121,135.32,135.27,0.17]
[1719011144250,20.0,135.35,135.27,0.17]
[1719011144868,5.9117,135.33,135.28,5.9132]
[1719011145065,27.58,135.36,135.27,14.9544]
[1719011145269,5.9119,135.32,135.27,6.0839]
[1719011145448,27.58,135.36,135.27,0.17]
[1719011145652,5.9116,135.33,135.28,5.9133]
[1719011145854,27.58,135.36,135.27,0.17]
[1719011146079,5.9115,135.33,135.28,5.9135]
[1719011146250,42.3555,135.36,135.27,0.17]
[1719011146573,5.9111,135.34,135.29,5.9131]
[1719011146777,28.39338807,135.39,135.27,0.17]
[1719011147072,47.58,135.38,135.28,16.3518]
[1719011147263,27.58,135.38,135.29,0.34]
[1719011147776,27.58,135.38,135.31,5.912]
[1719011147777,5.9098,135.37,135.31,5.912]
[1719011148973,37.6681,135.4,135.29,15.1221]
[1719011149150,65.2481,135.4,135.29,15.1221]
[1719011149347,5.9104,135.36,135.29,0.34]
[1719011149550,5.9104,135.36,135.3,5.9123]
[1719011150372,5.9104,135.36,135.31,5.9122]
[1719011151069,5.9099,135.37,135.31,5.9122]
[1719011151279,5.9099,135.37,135.32,5.9119]
[1719011151582,50.477,135.4,135.29,15.123]
[1719011151870,5.9093,135.38,135.33,5.9113]
[1719011152058,50.477,135.4,135.29,15.123]
[1719011152259,65.249,135.4,135.29,15.123]
[1719011152458,65.249,135.4,135.32,5.9116]
[1719011152459,5.9097,135.37,135.32,5.9116]
[1719011153872,5.9101,135.37,135.32,5.9117]
[1719011154166,5.9101,135.37,135.28,16.3518]
[1719011154167,5.9119,135.32,135.28,16.3518]
[1719011154375,5.9119,135.32,135.27,5.9138]
[1719011154756,15.1156,135.36,135.25,16.3518]
[1719011154757,14.7788,135.33,135.25,16.3518]
[1719011154953,5.9127,135.31,135.22,23.0079]
[1719011155160,5.9127,135.31,135.26,5.9142]
[1719011155657,5.9121,135.32,135.27,5.914]
[1719011156071,5.9116,135.33,135.28,5.9135]
[1719011156778,21.7065,135.34,135.29,5.913]
[1719011157158,5.9115,135.33,135.28,5.9134]
[1719011158769,21.7065,135.34,135.29,5.9131]
[1719011159381,15.7954,135.34,135.27,0.17]
[1719011159566,5.9124,135.31,135.24,14.7883]
[1719011159779,5.9124,135.31,135.26,5.9144]
[1719011161159,42.3587,135.33,135.22,37.7985]
[1719011161363,5.9142,135.27,135.19,23.0079]
[1719011161554,5.9145,135.27,135.19,23.0079]
[1719011161749,5.9149,135.26,135.21,5.9165]
[1719011161977,15.7954,135.28,135.19,23.0079]
[1719011162183,15.7954,135.28,135.24,5.9153]
[1719011162477,21.7091,135.28,135.23,5.9156]
[1719011162856,15.7954,135.28,135.19,23.0079]
[1719011163057,15.7954,135.28,135.21,5.9164]
[1719011163058,5.9147,135.26,135.21,5.9164]
[1719011163256,15.7954,135.28,135.2,5.9169]
[1719011163257,5.915,135.25,135.2,5.9169]
[1719011163473,15.7954,135.28,135.19,23.0079]
[1719011163781,5.9152,135.25,135.2,5.9171]
[1719011164075,27.58,135.24,135.16,0.8648173]
[1719011164266,43.7868,135.21,135.16,0.8648173]
[1719011164462,5.9184,135.17,135.16,0.8648173]
[1719011164854,11.9636,135.19,135.16,0.8648173]
[1719011165166,16.2068,135.21,135.16,0.8648173]
[1719011165761,6.0458,135.23,135.16,0.8648173]
[1719011165971,11.9619,135.23,135.16,0.8648173]
[1719011166253,11.9619,135.23,135.18,5.918]
[1719011166254,6.0458,135.23,135.18,5.918]
[1719011166459,11.9617,135.23,135.18,5.918]
[1719011166676,6.0458,135.23,135.19,5.9175]
[1719011166974,22.1219,135.25,135.19,5.9175]
[1719011167178,16.2068,135.25,135.16,0.8648173]
[1719011168084,5.9162,135.22,135.17,5.9184]
[1719011168375,5.9162,135.22,135.16,0.8648173]
[1719011168376,5.9167,135.21,135.16,0.8648173]
[1719011168577,5.9183,135.18,135.16,0.8648173]
[1719011168785,0.17,135.2,135.16,0.8648173]
[1719011168992,5.9184,135.17,135.16,0.8648173]
[1719011169281,6.2584,135.17,135.16,0.8648173]
[1719011170972,5.9184,135.17,135.16,0.8648173]
[1719011171363,21.0545,135.17,135.16,0.8648173]
[1719011171969,41.0545,135.17,135.16,0.8648173]
[1719011172861,26.0884,135.17,135.16,0.8648173]
[1719011173070,25.9184,135.17,135.16,0.8648173]
[1719011173478,5.9184,135.17,135.16,0.8648173]
[1719011174782,26.2584,135.17,135.16,0.8648173]
[1719011175180,5.9228,135.08,135.02,6.7895173]
[1719011175376,122.2526,135.16,135.02,0.8648173]
[1719011175571,5.9224,135.08,135.03,5.9243]
[1719011176065,5.9229,135.07,135.02,6.7896173]
[1719011176388,5.9225,135.08,135.03,5.9245]
[1719011176777,5.9225,135.08,135.02,0.8648173]
[1719011176778,5.922,135.09,135.04,5.9239]
[1719011177188,14.8028,135.11,135.02,0.8648173]
[1719011177381,5.9234,135.06,135.02,0.8648173]
[1719011179565,5.9237,135.05,135.02,0.8648173]
[1719011179999,5.9233,135.06,135.02,0.8648173]
[1719011180189,31.0117,135.09,135.02,0.8648173]
[1719011180386,0.34,135.08,135.02,0.8648173]
[1719011180694,5.9243,135.04,135.02,0.8648173]
[1719011181008,5.9231,135.07,135.02,6.7895173]
[1719011181672,5.9223,135.09,135.03,5.9245]
[1719011181887,5.9233,135.06,135.02,0.8648173]
[1719011182468,5.9229,135.07,135.02,6.7897173]
[1719011184091,5.9224,135.08,135.03,5.9243]
[1719011184789,25.9219,135.1,135.02,16.3542173]
[1719011184999,5.9219,135.1,135.02,16.3542173]
[1719011185379,5.9219,135.1,135.05,5.9236]
[1719011185894,5.9219,135.1,135.05,5.9235]
[1719011186798,5.9212,135.11,135.06,5.9231]
[1719011187168,0.17,135.1,135.02,16.3542173]
[1719011187484,14.8069,135.08,135.02,0.8648173]
[1719011187680,5.9245,135.04,135.02,0.8648173]
[1719011188366,5.9239,135.05,135.02,0.8648173]
[1719011189584,0.34,135.07,135.02,0.8648173]
[1719011189585,0.17,135.07,135.02,0.8648173]
[1719011189772,5.9234,135.06,135.02,0.8648173]
[1719011191792,5.9234,135.06,135.02,0.3648173]
[1719011192704,5.9237,135.05,135.02,0.3648173]
[1719011193674,5.9246,135.03,135.02,0.3648173]
[1719011194005,5.9243,135.04,135.02,0.3648173]
[1719011194309,5.9246,135.03,135.02,0.3648173]
[1719011195487,6.2646,135.03,135.02,0.3648173]
[1719011196288,0.17,135.03,135.02,0.3648173]
[1719011196484,6.0946,135.03,135.02,0.3648173]
[1719011197714,5.9239,135.05,135.02,0.3648173]
[1719011197890,5.924,135.05,135.02,0.3648173]
[1719011198208,5.9234,135.06,135.02,0.3648173]
[1719011198414,5.9237,135.05,135.02,0.3648173]
[1719011198911,5.9246,135.03,135.02,0.3648173]
[1719011199507,13.62611789,135.03,135.02,0.3648173]
[1719011200793,30.655,135.09,135.02,0.3648173]
[1719011201094,5.9234,135.06,135.02,0.3648173]
[1719011202314,22.50309782,135.11,135.02,0.3648173]
[1719011202481,5.922,135.09,135.05,5.9236]
[1719011202686,5.9217,135.1,135.05,5.9236]
[1719011203016,5.9221,135.09,135.04,5.924]
[1719011203190,318.7597,135.13,135.05,5.9237]
[1719011203191,5.9216,135.1,135.05,5.9237]
[1719011204288,14.7985,135.15,135.03,14.8106]
[1719011204496,5.9208,135.12,135.07,5.9228]
[1719011204699,5.9211,135.11,135.07,5.9228]
[1719011204913,5.9211,135.11,135.06,5.9231]
[1719011205079,14.7985,135.15,135.06,5.9231]
[1719011205291,5.9215,135.1,135.05,5.9235]
[1719011205616,34.8004,135.14,135.04,0.17]
[1719011205617,5.9212,135.11,135.06,5.9231]
[1719011205803,5.9207,135.12,135.07,5.9226]
[1719011206595,5.9211,135.11,135.07,5.9226]
[1719011206795,14.8004,135.14,135.06,5.9232]
[1719011207005,5.9215,135.1,135.05,5.9235]
[1719011207695,5.9212,135.11,135.06,5.9232]
[1719011208192,5.9216,135.1,135.05,5.9235]
[1719011208791,5.9212,135.11,135.06,5.9232]
[1719011209794,14.8004,135.14,135.02,0.3648173]
[1719011209795,0.17,135.1,135.02,0.3648173]